[Event "*** Titled Tuesday Blitz"]
[Site "Chess.com"]
[Date "2019.03.05"]
[Round "6"]
[White "GelmanAlexander"]
[Black "Blitzstream"]
[Result "0-1"]
[WhiteElo "2587"]
[BlackElo "2579"]
[TimeControl "180+2"]
[EndTime "14:27:34 PST"]
[Termination "Blitzstream won by checkmate"]

1. d4 {[%clk 0:03:01.9]} 1... d5 {[%clk 0:03:00.3]} 2. Nc3 {[%clk 0:03:02.4]}
2... Nf6 {[%clk 0:03:00.2]} 3. Bf4 {[%clk 0:03:03.6]} 3... Bf5 {[%clk
0:03:01.3]} 4. f3 {[%clk 0:03:04]} 4... e6 {[%clk 0:03:00.3]} 5. g4 {[%clk
0:03:04.6]} 5... Bg6 {[%clk 0:03:01.1]} 6. h4 {[%clk 0:03:05.9]} 6... h6 {[%clk
0:03:01.5]} 7. e3 {[%clk 0:02:43]} 7... c5 {[%clk 0:03:02]} 8. Nb5 {[%clk
0:02:21.3]} 8... Na6 {[%clk 0:03:01.4]} 9. c3 {[%clk 0:02:21.7]} 9... Be7 {[%clk
0:02:59.1]} 10. a4 {[%clk 0:01:57.6]} 10... cxd4 {[%clk 0:02:34.5]} 11. exd4
{[%clk 0:01:58.4]} 11... O-O {[%clk 0:02:25.7]} 12. Bd3 {[%clk 0:01:52.1]} 12...
Ne8 {[%clk 0:02:13.5]} 13. Bg3 {[%clk 0:01:45.3]} 13... Bxd3 {[%clk 0:02:01]}
14. Qxd3 {[%clk 0:01:46]} 14... Nac7 {[%clk 0:02:02.9]} 15. g5 {[%clk
0:01:32.2]} 15... Nxb5 {[%clk 0:01:54.7]} 16. axb5 {[%clk 0:01:32]} 16... h5
{[%clk 0:01:55.2]} 17. g6 {[%clk 0:01:15.4]} 17... Bd6 {[%clk 0:01:25.7]} 18.
Ne2 {[%clk 0:01:06.9]} 18... fxg6 {[%clk 0:01:06.7]} 19. Qxg6 {[%clk 0:01:07.6]}
19... Qf6 {[%clk 0:00:57.4]} 20. Qxh5 {[%clk 0:00:30.2]} 20... Qxf3 {[%clk
0:00:55.9]} 21. Qxf3 {[%clk 0:00:27.9]} 21... Rxf3 {[%clk 0:00:57.8]} 22. Rg1
{[%clk 0:00:26.7]} 22... Bxg3+ {[%clk 0:00:36.6]} 23. Rxg3 {[%clk 0:00:27.6]}
23... Rxg3 {[%clk 0:00:37]} 24. Nxg3 {[%clk 0:00:28.6]} 24... Nd6 {[%clk
0:00:38.9]} 25. b6 {[%clk 0:00:21.4]} 25... a6 {[%clk 0:00:39.9]} 26. Kd2 {[%clk
0:00:21.3]} 26... Rf8 {[%clk 0:00:36.5]} 27. Re1 {[%clk 0:00:20.6]} 27... Rf2+
{[%clk 0:00:37]} 28. Kc1 {[%clk 0:00:19.3]} 28... Kf7 {[%clk 0:00:37.1]} 29. Ne2
{[%clk 0:00:17.7]} 29... Nc4 {[%clk 0:00:33.3]} 30. b3 {[%clk 0:00:18.4]} 30...
Nxb6 {[%clk 0:00:33.8]} 31. Kd2 {[%clk 0:00:20]} 31... Nd7 {[%clk 0:00:26.1]}
32. Ke3 {[%clk 0:00:20.6]} 32... Rh2 {[%clk 0:00:24.2]} 33. Rf1+ {[%clk
0:00:22.2]} 33... Ke7 {[%clk 0:00:23.9]} 34. Rg1 {[%clk 0:00:23]} 34... Rh3+
{[%clk 0:00:16.9]} 35. Kd2 {[%clk 0:00:23.7]} 35... Rxh4 {[%clk 0:00:16.9]} 36.
Rxg7+ {[%clk 0:00:24.6]} 36... Kd6 {[%clk 0:00:18.2]} 37. Nc1 {[%clk 0:00:24]}
37... Rh2+ {[%clk 0:00:17.9]} 38. Ke3 {[%clk 0:00:24.4]} 38... Rh3+ {[%clk
0:00:18.7]} 39. Kd2 {[%clk 0:00:25.4]} 39... Nf6 {[%clk 0:00:18.2]} 40. Ne2
{[%clk 0:00:19.8]} 40... Ne4+ {[%clk 0:00:18]} 41. Kc2 {[%clk 0:00:21.2]} 41...
Rh2 {[%clk 0:00:17.2]} 42. Kd3 {[%clk 0:00:22.1]} 42... Kc6 {[%clk 0:00:09.4]}
43. Re7 {[%clk 0:00:22.4]} 43... Rh3+ {[%clk 0:00:09.5]} 44. Kc2 {[%clk
0:00:23.3]} 44... Rh2 {[%clk 0:00:10.5]} 45. Kd3 {[%clk 0:00:23.9]} 45... Ng5
{[%clk 0:00:06.2]} 46. Rg7 {[%clk 0:00:19.5]} 46... Rh3+ {[%clk 0:00:06.4]} 47.
Kc2 {[%clk 0:00:20]} 47... Ne4 {[%clk 0:00:04.8]} 48. Re7 {[%clk 0:00:21]} 48...
Re3 {[%clk 0:00:05.6]} 49. Nf4 {[%clk 0:00:20]} 49... Rxc3+ {[%clk 0:00:06.1]}
50. Kb2 {[%clk 0:00:21.5]} 50... Rf3 {[%clk 0:00:06.9]} 51. Rxe6+ {[%clk
0:00:22.8]} 51... Kd7 {[%clk 0:00:06.6]} 52. Rb6 {[%clk 0:00:11.4]} 52... Rxf4
{[%clk 0:00:07.3]} 53. Rxb7+ {[%clk 0:00:12.9]} 53... Kc6 {[%clk 0:00:08.5]} 54.
Ra7 {[%clk 0:00:13.1]} 54... Kb6 {[%clk 0:00:08.8]} 55. Rd7 {[%clk 0:00:13.7]}
55... Rf2+ {[%clk 0:00:09.6]} 56. Ka3 {[%clk 0:00:14.7]} 56... Nc3 {[%clk
0:00:10.8]} 57. Kb4 {[%clk 0:00:15.5]} 57... Rf3 {[%clk 0:00:11.8]} 58. Rd6+
{[%clk 0:00:16.3]} 58... Kb7 {[%clk 0:00:12.8]} 59. Rd7+ {[%clk 0:00:17.2]}
59... Kc6 {[%clk 0:00:13.8]} 60. Rh7 {[%clk 0:00:18.5]} 60... Nb5 {[%clk
0:00:13.9]} 61. Rh6+ {[%clk 0:00:19.3]} 61... Nd6 {[%clk 0:00:15.2]} 62. Rg6
{[%clk 0:00:18]} 62... Rd3 {[%clk 0:00:16.2]} 63. Ka5 {[%clk 0:00:18.8]} 63...
Rxb3 {[%clk 0:00:16.8]} 64. Kxa6 {[%clk 0:00:19.8]} 64... Ra3# {[%clk 0:00:18]}
0-1

[Event "*** Titled Tuesday Blitz"]
[Site "Chess.com"]
[Date "2019.03.05"]
[Round "6"]
[White "payto1"]
[Black "LLRChess"]
[Result "0-1"]
[WhiteElo "2217"]
[BlackElo "2341"]
[TimeControl "180+2"]
[EndTime "14:27:35 PST"]
[Termination "LLRChess won by checkmate"]

1. d4 {[%clk 0:00:55.4]} 1... f5 {[%clk 0:02:59.6]} 2. g3 {[%clk 0:00:51.9]}
2... Nf6 {[%clk 0:03:00.3]} 3. Bg2 {[%clk 0:00:52.1]} 3... g6 {[%clk 0:03:01.8]}
4. c3 {[%clk 0:00:52.4]} 4... Bg7 {[%clk 0:03:03.2]} 5. Nd2 {[%clk 0:00:51.4]}
5... O-O {[%clk 0:03:03.6]} 6. Qb3+ {[%clk 0:00:52.1]} 6... e6 {[%clk
0:03:04.4]} 7. Bxb7 {[%clk 0:00:52.1]} 7... Bxb7 {[%clk 0:03:04.5]} 8. Qxb7
{[%clk 0:00:48.5]} 8... Nc6 {[%clk 0:03:06]} 9. Qb3 {[%clk 0:00:47.7]} 9... Kh8
{[%clk 0:03:04.9]} 10. Ngf3 {[%clk 0:00:46.3]} 10... h6 {[%clk 0:03:06.3]} 11.
O-O {[%clk 0:00:45.4]} 11... Qe7 {[%clk 0:02:51.9]} 12. Nc4 {[%clk 0:00:35.7]}
12... d6 {[%clk 0:02:46.3]} 13. Qa4 {[%clk 0:00:27.4]} 13... Nd8 {[%clk
0:02:43.2]} 14. Na5 {[%clk 0:00:23.8]} 14... Nf7 {[%clk 0:02:42.1]} 15. Qc6
{[%clk 0:00:18.1]} 15... Ne4 {[%clk 0:02:31.9]} 16. Nc4 {[%clk 0:00:15.9]} 16...
Rab8 {[%clk 0:02:28.8]} 17. Ncd2 {[%clk 0:00:16.4]} 17... d5 {[%clk 0:02:25.7]}
18. Nxe4 {[%clk 0:00:15.5]} 18... fxe4 {[%clk 0:02:26.2]} 19. Nh4 {[%clk
0:00:16.3]} 19... Kh7 {[%clk 0:02:25.3]} 20. f3 {[%clk 0:00:17.5]} 20... Rb6
{[%clk 0:02:11.3]} 21. Qa4 {[%clk 0:00:14.7]} 21... g5 {[%clk 0:02:01]} 22. Ng2
{[%clk 0:00:14.4]} 22... c5 {[%clk 0:01:50.5]} 23. dxc5 {[%clk 0:00:12.9]} 23...
Qxc5+ {[%clk 0:01:50.2]} 24. Be3 {[%clk 0:00:11.3]} 24... Qb5 {[%clk 0:01:44.7]}
25. Qxb5 {[%clk 0:00:11.7]} 25... Rxb5 {[%clk 0:01:46.6]} 26. Rab1 {[%clk
0:00:13]} 26... exf3 {[%clk 0:01:42.2]} 27. exf3 {[%clk 0:00:13.7]} 27... Ne5
{[%clk 0:01:41.9]} 28. Bd4 {[%clk 0:00:14]} 28... Nxf3+ {[%clk 0:01:41.2]} 29.
Kh1 {[%clk 0:00:14.7]} 29... Nd2 {[%clk 0:01:25.7]} 30. Rxf8 {[%clk 0:00:14.4]}
30... Bxf8 {[%clk 0:01:26.4]} 31. Rd1 {[%clk 0:00:15.8]} 31... Rxb2 {[%clk
0:01:26.8]} 32. c4 {[%clk 0:00:16.7]} 32... Rxa2 {[%clk 0:01:26.8]} 33. cxd5
{[%clk 0:00:17.9]} 33... exd5 {[%clk 0:01:25.6]} 34. Bc3 {[%clk 0:00:17.4]}
34... Ne4 {[%clk 0:01:23]} 35. Bd4 {[%clk 0:00:17.9]} 35... Bg7 {[%clk
0:01:09.5]} 36. Bg1 {[%clk 0:00:17.6]} 36... d4 {[%clk 0:01:06.5]} 37. h4 {[%clk
0:00:18]} 37... Nxg3+ {[%clk 0:01:05.7]} 38. Kh2 {[%clk 0:00:17.4]} 38... Nf5
{[%clk 0:01:06]} 39. hxg5 {[%clk 0:00:19.2]} 39... hxg5 {[%clk 0:01:05]} 40. Kh3
{[%clk 0:00:19.3]} 40... Kg6 {[%clk 0:01:03.3]} 41. Rc1 {[%clk 0:00:18.3]} 41...
Kh5 {[%clk 0:01:00.9]} 42. Rc5 {[%clk 0:00:17.3]} 42... g4+ {[%clk 0:01:01.5]}
43. Kh2 {[%clk 0:00:17.7]} 43... Kg5 {[%clk 0:01:02.1]} 44. Kh1 {[%clk
0:00:18.7]} 44... Ra6 {[%clk 0:00:56.3]} 45. Rd5 {[%clk 0:00:18]} 45... Rh6+
{[%clk 0:00:56.7]} 46. Bh2 {[%clk 0:00:18.4]} 46... Rh3 {[%clk 0:00:49.5]} 47.
Kg1 {[%clk 0:00:17.9]} 47... g3 {[%clk 0:00:48.7]} 48. Bxg3 {[%clk 0:00:17]}
48... Rxg3 {[%clk 0:00:49.7]} 49. Kf2 {[%clk 0:00:18.9]} 49... Ra3 {[%clk
0:00:48.3]} 50. Rd7 {[%clk 0:00:19.4]} 50... Kg4 {[%clk 0:00:40.9]} 51. Rf7
{[%clk 0:00:17.6]} 51... Be5 {[%clk 0:00:41.2]} 52. Ne1 {[%clk 0:00:16.6]} 52...
Bg3+ {[%clk 0:00:41.7]} 53. Kf1 {[%clk 0:00:17.4]} 53... Ra1 {[%clk 0:00:42.2]}
54. Ke2 {[%clk 0:00:17.5]} 54... Rxe1+ {[%clk 0:00:42.9]} 55. Kd3 {[%clk
0:00:19.4]} 55... Re3+ {[%clk 0:00:43.3]} 56. Kd2 {[%clk 0:00:20.2]} 56... Bf4
{[%clk 0:00:42.4]} 57. Kd1 {[%clk 0:00:22.1]} 57... Ng3 {[%clk 0:00:41.4]} 58.
Rg7+ {[%clk 0:00:22.7]} 58... Kf3 {[%clk 0:00:42.1]} 59. Rxa7 {[%clk 0:00:24.6]}
59... Rd3+ {[%clk 0:00:41.5]} 60. Kc2 {[%clk 0:00:23.2]} 60... Rd2+ {[%clk
0:00:42.5]} 61. Kb1 {[%clk 0:00:21.8]} 61... d3 {[%clk 0:00:43.6]} 62. Rd7
{[%clk 0:00:21.9]} 62... Rd1+ {[%clk 0:00:44.5]} 63. Kb2 {[%clk 0:00:22.3]}
63... d2 {[%clk 0:00:45.8]} 64. Rd3+ {[%clk 0:00:23.8]} 64... Ke2 {[%clk
0:00:46.3]} 65. Rxd2+ {[%clk 0:00:23]} 65... Rxd2+ {[%clk 0:00:46.5]} 66. Kc1
{[%clk 0:00:24.9]} 66... Kd3 {[%clk 0:00:46.8]} 67. Kb1 {[%clk 0:00:26.2]} 67...
Kc3 {[%clk 0:00:48]} 68. Ka1 {[%clk 0:00:26.7]} 68... Kb3 {[%clk 0:00:48.9]} 69.
Kb1 {[%clk 0:00:28.3]} 69... Rd1# {[%clk 0:00:50.3]} 0-1

[Event "*** Titled Tuesday Blitz"]
[Site "Chess.com"]
[Date "2019.03.05"]
[Round "6"]
[White "CzechmVIII"]
[Black "saraswathii"]
[Result "1/2-1/2"]
[WhiteElo "2136"]
[BlackElo "2264"]
[TimeControl "180+2"]
[EndTime "14:27:36 PST"]
[Termination "Game drawn by agreement"]

1. e4 {[%clk 0:03:01.9]} 1... c5 {[%clk 0:03:00.2]} 2. Nf3 {[%clk 0:03:02.2]}
2... e6 {[%clk 0:03:00.5]} 3. Nc3 {[%clk 0:03:02.2]} 3... Nc6 {[%clk 0:02:57.8]}
4. d4 {[%clk 0:03:01.3]} 4... cxd4 {[%clk 0:02:51.3]} 5. Nxd4 {[%clk 0:03:02.3]}
5... Nf6 {[%clk 0:02:52.3]} 6. Nxc6 {[%clk 0:03:02.4]} 6... bxc6 {[%clk
0:02:51.1]} 7. e5 {[%clk 0:03:03.3]} 7... Nd5 {[%clk 0:02:51.7]} 8. Ne4 {[%clk
0:03:04.2]} 8... f5 {[%clk 0:02:47]} 9. exf6 {[%clk 0:03:02.8]} 9... Nxf6 {[%clk
0:02:44.6]} 10. Nd6+ {[%clk 0:03:02.4]} 10... Bxd6 {[%clk 0:02:35.4]} 11. Qxd6
{[%clk 0:03:03.2]} 11... Qe7 {[%clk 0:02:36.3]} 12. Qxe7+ {[%clk 0:02:47.9]}
12... Kxe7 {[%clk 0:02:35.4]} 13. b3 {[%clk 0:02:49.4]} 13... e5 {[%clk
0:02:32.2]} 14. f4 {[%clk 0:02:39.8]} 14... e4 {[%clk 0:02:32.1]} 15. c4 {[%clk
0:02:34.9]} 15... d5 {[%clk 0:02:27.7]} 16. Bb2 {[%clk 0:02:35.1]} 16... Be6
{[%clk 0:02:22.9]} 17. Be2 {[%clk 0:02:26.2]} 17... Rad8 {[%clk 0:02:20.3]} 18.
Bd4 {[%clk 0:02:22]} 18... a5 {[%clk 0:02:14.8]} 19. c5 {[%clk 0:02:16.4]} 19...
Kf7 {[%clk 0:02:09.5]} 20. O-O {[%clk 0:02:03]} 20... Rhe8 {[%clk 0:02:08.2]}
21. a3 {[%clk 0:01:44.9]} 21... Rb8 {[%clk 0:02:07.6]} 22. Rfb1 {[%clk
0:01:44.4]} 22... Rb7 {[%clk 0:02:05.8]} 23. b4 {[%clk 0:01:34.3]} 23... axb4
{[%clk 0:02:04.4]} 24. axb4 {[%clk 0:01:35.5]} 24... Reb8 {[%clk 0:02:05.2]} 25.
b5 {[%clk 0:01:32.7]} 25... cxb5 {[%clk 0:01:59]} 26. c6 {[%clk 0:01:33.7]}
26... Re7 {[%clk 0:01:58.7]} 27. Rxb5 {[%clk 0:01:29.1]} 27... Rc8 {[%clk
0:01:58.1]} 28. Rc5 {[%clk 0:01:19.2]} 28... Ne8 {[%clk 0:01:36.2]} 29. Ba6
{[%clk 0:01:10.1]} 29... Ra8 {[%clk 0:01:34.4]} 30. Bb7 {[%clk 0:01:08.8]} 30...
Rxa1+ {[%clk 0:01:34.3]} 31. Bxa1 {[%clk 0:01:09.8]} 31... Nd6 {[%clk
0:01:30.7]} 32. Be5 {[%clk 0:01:05.3]} 32... Nxb7 {[%clk 0:01:30]} 33. cxb7
{[%clk 0:01:04.8]} 33... Rxb7 {[%clk 0:01:31.9]} 34. Rc7+ {[%clk 0:01:04.8]}
34... Rxc7 {[%clk 0:01:32.9]} 35. Bxc7 {[%clk 0:01:06.5]} 35... d4 {[%clk
0:01:25.8]} 36. Be5 {[%clk 0:01:04]} 36... d3 {[%clk 0:01:25.1]} 37. Kf2 {[%clk
0:01:05.2]} 37... Bd5 {[%clk 0:01:25.9]} 38. Ke3 {[%clk 0:01:04.8]} 38... g6
{[%clk 0:01:27.3]} 39. g4 {[%clk 0:01:03.2]} 39... Ke6 {[%clk 0:01:26.6]} 40.
Kd2 {[%clk 0:00:52.4]} 40... g5 {[%clk 0:01:26.5]} 41. Ke3 {[%clk 0:00:52.2]}
41... Bb3 {[%clk 0:01:16.1]} 42. Bc3 {[%clk 0:00:51.8]} 42... gxf4+ {[%clk
0:01:14.3]} 43. Kxf4 {[%clk 0:00:51.3]} 43... Kd5 {[%clk 0:01:14.8]} 44. Ke3
{[%clk 0:00:52.2]} 44... Bd1 {[%clk 0:01:10]} 45. g5 {[%clk 0:00:49.8]} 45...
Bf3 {[%clk 0:01:09]} 46. Bf6 {[%clk 0:00:45.7]} 46... Ke6 {[%clk 0:01:09.9]} 47.
Bd8 {[%clk 0:00:46.6]} 47... Kf5 {[%clk 0:01:09.2]} 48. Be7 {[%clk 0:00:46.6]}
48... Kg4 {[%clk 0:01:09]} 49. Bd6 {[%clk 0:00:42.6]} 49... Kxg5 {[%clk
0:01:08.9]} 50. Bb8 {[%clk 0:00:37.5]} 50... Kg4 {[%clk 0:01:08.4]} 51. Bd6
{[%clk 0:00:37.2]} 51... Kh3 {[%clk 0:01:09.2]} 52. Bc7 {[%clk 0:00:37.3]} 52...
Kg2 {[%clk 0:01:09.6]} 53. Bd6 {[%clk 0:00:37.9]} 53... h5 {[%clk 0:01:04.5]}
54. h4 {[%clk 0:00:34.8]} 54... Kf1 {[%clk 0:00:58.6]} 55. Bb4 {[%clk
0:00:35.5]} 55... Kg1 {[%clk 0:00:47.1]} 56. Ba5 {[%clk 0:00:35.3]} 56... Kg2
{[%clk 0:00:48.2]} 57. Bb4 {[%clk 0:00:35.9]} 57... Kg3 {[%clk 0:00:44.8]} 58.
Be7 {[%clk 0:00:36.9]} 58... Bg4 {[%clk 0:00:40.3]} 59. Bd8 {[%clk 0:00:36.5]}
59... Bf5 {[%clk 0:00:37.7]} 60. Be7 {[%clk 0:00:36]} 60... Kg4 {[%clk
0:00:38.3]} 61. Bd8 {[%clk 0:00:36.2]} 61... Be6 {[%clk 0:00:39.4]} 62. Be7
{[%clk 0:00:35.6]} 62... Kf5 {[%clk 0:00:40.7]} 63. Bd8 {[%clk 0:00:35.8]} 63...
Ke5 {[%clk 0:00:42.3]} 64. Ba5 {[%clk 0:00:34.5]} 64... Kd5 {[%clk 0:00:44.2]}
65. Bc3 {[%clk 0:00:35.1]} 65... Kc4 {[%clk 0:00:44.7]} 66. Ba5 {[%clk
0:00:33.7]} 66... Bd5 {[%clk 0:00:42.3]} 67. Be1 {[%clk 0:00:32.1]} 67... Kb3
{[%clk 0:00:42.7]} 68. Ba5 {[%clk 0:00:29.8]} 68... Kb2 {[%clk 0:00:43]} 69. Bb4
{[%clk 0:00:30.6]} 69... Kc2 {[%clk 0:00:42.9]} 70. Ba5 {[%clk 0:00:31.2]} 70...
Kd1 {[%clk 0:00:43.3]} 71. Bb4 {[%clk 0:00:31.1]} 71... Kc2 {[%clk 0:00:41.8]}
72. Ba5 {[%clk 0:00:32.2]} 1/2-1/2

[Event "*** Titled Tuesday Blitz"]
[Site "Chess.com"]
[Date "2019.03.05"]
[Round "6"]
[White "TheBigBoss04"]
[Black "Dyadya81"]
[Result "0-1"]
[WhiteElo "2554"]
[BlackElo "2760"]
[TimeControl "180+2"]
[EndTime "14:27:40 PST"]
[Termination "Dyadya81 won by checkmate"]

1. d4 {[%clk 0:03:01.9]} 1... d5 {[%clk 0:03:00.2]} 2. c4 {[%clk 0:03:03.1]}
2... Nc6 {[%clk 0:03:01.8]} 3. cxd5 {[%clk 0:02:59.7]} 3... Qxd5 {[%clk
0:03:03.7]} 4. e3 {[%clk 0:02:59.8]} 4... e5 {[%clk 0:03:05.2]} 5. Nc3 {[%clk
0:02:59.6]} 5... Bb4 {[%clk 0:03:06.7]} 6. Bd2 {[%clk 0:02:59.1]} 6... Bxc3
{[%clk 0:03:07.9]} 7. bxc3 {[%clk 0:02:58.9]} 7... Qd6 {[%clk 0:03:09.2]} 8. Bd3
{[%clk 0:02:46.4]} 8... Nf6 {[%clk 0:03:10.3]} 9. Ne2 {[%clk 0:02:46.6]} 9...
O-O {[%clk 0:03:09.6]} 10. h3 {[%clk 0:02:42.9]} 10... e4 {[%clk 0:02:55.3]} 11.
Bc2 {[%clk 0:02:32]} 11... Be6 {[%clk 0:02:56]} 12. O-O {[%clk 0:02:25.7]} 12...
Bc4 {[%clk 0:02:56.7]} 13. Re1 {[%clk 0:02:24.7]} 13... Rfe8 {[%clk 0:02:52.2]}
14. Nf4 {[%clk 0:02:20.9]} 14... Nd5 {[%clk 0:02:45.6]} 15. Qg4 {[%clk 0:01:57]}
15... Nxf4 {[%clk 0:02:18.8]} 16. exf4 {[%clk 0:01:56.8]} 16... Bd5 {[%clk
0:02:00.1]} 17. f5 {[%clk 0:01:54.5]} 17... Na5 {[%clk 0:01:23.1]} 18. Bxe4
{[%clk 0:01:43.6]} 18... h5 {[%clk 0:01:24.2]} 19. Qh4 {[%clk 0:01:31.6]} 19...
Nc4 {[%clk 0:01:09.9]} 20. Bf4 {[%clk 0:01:19]} 20... Rxe4 {[%clk 0:00:55.9]}
21. Rxe4 {[%clk 0:01:15.9]} 21... Qd7 {[%clk 0:00:55.7]} 22. Re7 {[%clk
0:01:09.6]} 22... Qxf5 {[%clk 0:00:55.9]} 23. Rae1 {[%clk 0:01:04.8]} 23... Kh7
{[%clk 0:00:45.4]} 24. Rxc7 {[%clk 0:00:47.6]} 24... f6 {[%clk 0:00:26.8]} 25.
Ree7 {[%clk 0:00:43.5]} 25... Rg8 {[%clk 0:00:28.1]} 26. Qg3 {[%clk 0:00:40.2]}
26... Qb1+ {[%clk 0:00:21.7]} 27. Kh2 {[%clk 0:00:39.7]} 27... Qg6 {[%clk
0:00:23.3]} 28. Qxg6+ {[%clk 0:00:37]} 28... Kxg6 {[%clk 0:00:25.2]} 29. g4
{[%clk 0:00:32.8]} 29... hxg4 {[%clk 0:00:23.8]} 30. hxg4 {[%clk 0:00:34.7]}
30... a5 {[%clk 0:00:23.7]} 31. Kg3 {[%clk 0:00:34]} 31... a4 {[%clk 0:00:24.7]}
32. Rc5 {[%clk 0:00:32.4]} 32... Nb6 {[%clk 0:00:13.4]} 33. Rb5 {[%clk
0:00:32.4]} 33... Nc8 {[%clk 0:00:07.9]} 34. Rc7 {[%clk 0:00:26.1]} 34... Bxa2
{[%clk 0:00:07.4]} 35. Rbxb7 {[%clk 0:00:26.1]} 35... Bb3 {[%clk 0:00:08.3]} 36.
c4 {[%clk 0:00:23.8]} 36... Kh7 {[%clk 0:00:06.4]} 37. d5 {[%clk 0:00:24.2]}
37... Bc2 {[%clk 0:00:05.8]} 38. Bd6 {[%clk 0:00:18.6]} 38... Nxd6 {[%clk
0:00:05.9]} 39. Ra7 {[%clk 0:00:16.1]} 39... Ne4+ {[%clk 0:00:06.8]} 40. Kg2
{[%clk 0:00:16.5]} 40... Bb3 {[%clk 0:00:06.3]} 41. f3 {[%clk 0:00:15]} 41...
Nd6 {[%clk 0:00:07.6]} 42. Rd7 {[%clk 0:00:09.9]} 42... Nxc4 {[%clk 0:00:08.8]}
43. d6 {[%clk 0:00:11.3]} 43... Ne5 {[%clk 0:00:09.9]} 44. Rdc7 {[%clk
0:00:11.2]} 44... Bd5 {[%clk 0:00:10.9]} 45. Rxa4 {[%clk 0:00:10.5]} 45... Nxf3
{[%clk 0:00:11.4]} 46. Kg3 {[%clk 0:00:11.7]} 46... Ne5 {[%clk 0:00:12]} 47. Rd4
{[%clk 0:00:12.4]} 47... Be6 {[%clk 0:00:13.2]} 48. Re7 {[%clk 0:00:10.8]} 48...
Bxg4 {[%clk 0:00:07]} 49. d7 {[%clk 0:00:09.4]} 49... Bxd7 {[%clk 0:00:06.8]}
50. Rh4+ {[%clk 0:00:03.3]} 50... Kg6 {[%clk 0:00:07.5]} 51. Rh2 {[%clk
0:00:04.9]} 51... Bf5 {[%clk 0:00:08.2]} 52. Rd2 {[%clk 0:00:05]} 52... Rh8
{[%clk 0:00:08.5]} 53. Rd6 {[%clk 0:00:06]} 53... Rh3+ {[%clk 0:00:09.2]} 54.
Kg2 {[%clk 0:00:06.6]} 54... Re3 {[%clk 0:00:09.7]} 55. Rc7 {[%clk 0:00:05.4]}
55... Bh3+ {[%clk 0:00:10.5]} 56. Kg1 {[%clk 0:00:03.9]} 56... Ng4 {[%clk
0:00:11.7]} 57. Rd1 {[%clk 0:00:03.3]} 57... Rg3+ {[%clk 0:00:12]} 58. Kh1
{[%clk 0:00:02.9]} 58... Nf2+ {[%clk 0:00:13.5]} 59. Kh2 {[%clk 0:00:04.7]}
59... Rg2# {[%clk 0:00:14.9]} 0-1

[Event "*** Titled Tuesday Blitz"]
[Site "Chess.com"]
[Date "2019.03.05"]
[Round "6"]
[White "kinga2008"]
[Black "Karina_Oparina"]
[Result "0-1"]
[WhiteElo "1851"]
[BlackElo "2172"]
[TimeControl "180+2"]
[EndTime "14:27:46 PST"]
[Termination "Karina_Oparina won by resignation"]

1. e4 {[%clk 0:01:44.7]} 1... c6 {[%clk 0:02:48.3]} 2. d4 {[%clk 0:01:45.1]}
2... d5 {[%clk 0:02:48.7]} 3. e5 {[%clk 0:01:45.6]} 3... c5 {[%clk 0:02:48.4]}
4. c4 {[%clk 0:01:45.3]} 4... cxd4 {[%clk 0:02:47.4]} 5. Qxd4 {[%clk 0:01:42.5]}
5... Nc6 {[%clk 0:02:45]} 6. Qxd5 {[%clk 0:01:40.8]} 6... Qxd5 {[%clk
0:02:44.6]} 7. cxd5 {[%clk 0:01:40.4]} 7... Nxe5 {[%clk 0:02:41.1]} 8. Bf4
{[%clk 0:01:41]} 8... Ng6 {[%clk 0:02:37.4]} 9. Bg3 {[%clk 0:01:40.7]} 9... Nf6
{[%clk 0:02:35.4]} 10. Nc3 {[%clk 0:01:33.5]} 10... e6 {[%clk 0:02:33.1]} 11.
O-O-O {[%clk 0:01:26.6]} 11... a6 {[%clk 0:02:26.3]} 12. Bc4 {[%clk 0:01:20]}
12... b5 {[%clk 0:01:56.5]} 13. Bb3 {[%clk 0:01:11.8]} 13... e5 {[%clk
0:01:29.4]} 14. Nf3 {[%clk 0:01:08.5]} 14... Bd6 {[%clk 0:01:26]} 15. Rhe1
{[%clk 0:01:02.6]} 15... Nd7 {[%clk 0:01:19.7]} 16. Ne4 {[%clk 0:00:57.4]} 16...
Ke7 {[%clk 0:01:18.2]} 17. Nxd6 {[%clk 0:00:56.1]} 17... Kxd6 {[%clk 0:01:16.7]}
18. Rd2 {[%clk 0:00:36.5]} 18... Bb7 {[%clk 0:01:10.8]} 19. Nd4 {[%clk
0:00:28.3]} 19... Rhg8 {[%clk 0:00:25]} 20. Nf5+ {[%clk 0:00:24.4]} 20... Kc5
{[%clk 0:00:23.1]} 21. Rc2+ {[%clk 0:00:22.7]} 21... Kb6 {[%clk 0:00:22.3]} 22.
f3 {[%clk 0:00:20.8]} 22... a5 {[%clk 0:00:19.1]} 23. Bf2+ {[%clk 0:00:20.4]}
23... Ka6 {[%clk 0:00:18.7]} 24. Nd6 {[%clk 0:00:20.4]} 24... f6 {[%clk
0:00:16.6]} 25. Rc7 {[%clk 0:00:17.2]} 25... Rac8 {[%clk 0:00:10.4]} 26. Nxc8
{[%clk 0:00:11.3]} 26... Rxc8 {[%clk 0:00:11.5]} 27. Rxc8 {[%clk 0:00:12.2]}
27... Bxc8 {[%clk 0:00:12.5]} 28. Kd2 {[%clk 0:00:12.7]} 28... a4 {[%clk
0:00:11.9]} 29. Bc2 {[%clk 0:00:11.8]} 29... Bb7 {[%clk 0:00:12.5]} 30. Be4
{[%clk 0:00:07.7]} 30... Nf4 {[%clk 0:00:11.2]} 31. d6 {[%clk 0:00:04]} 31...
Bxe4 {[%clk 0:00:10.8]} 32. fxe4 {[%clk 0:00:03.7]} 32... Kb7 {[%clk 0:00:10.7]}
33. Rc1 {[%clk 0:00:03.6]} 33... Ne6 {[%clk 0:00:11.9]} 34. b3 {[%clk
0:00:03.5]} 34... axb3 {[%clk 0:00:11.8]} 35. axb3 {[%clk 0:00:04.4]} 35... Nb6
{[%clk 0:00:11.9]} 36. Rc5 {[%clk 0:00:02.5]} 36... Nxc5 {[%clk 0:00:11.7]} 37.
Bxc5 {[%clk 0:00:03.2]} 37... Nd7 {[%clk 0:00:12.9]} 38. b4 {[%clk 0:00:03.9]}
38... Kc6 {[%clk 0:00:13.7]} 39. Ke3 {[%clk 0:00:03.3]} 39... Nf8 {[%clk
0:00:14.4]} 40. Kf3 {[%clk 0:00:03.8]} 40... Ne6 {[%clk 0:00:15.1]} 41. Kg4
{[%clk 0:00:04.3]} 41... g6 {[%clk 0:00:14.7]} 42. Kf3 {[%clk 0:00:04.6]} 42...
Kd7 {[%clk 0:00:15.7]} 43. g4 {[%clk 0:00:05.6]} 43... Ng5+ {[%clk 0:00:15.7]}
44. Ke3 {[%clk 0:00:06]} 44... Nf7 {[%clk 0:00:16.7]} 45. h4 {[%clk 0:00:06.4]}
45... Nxd6 {[%clk 0:00:17.8]} 46. Bxd6 {[%clk 0:00:07]} 46... Kxd6 {[%clk
0:00:18.6]} 47. Kd3 {[%clk 0:00:07.5]} 47... h5 {[%clk 0:00:18.4]} 48. gxh5
{[%clk 0:00:06.5]} 48... gxh5 {[%clk 0:00:19]} 49. Ke3 {[%clk 0:00:07.8]} 49...
Ke6 {[%clk 0:00:20]} 50. Kf3 {[%clk 0:00:08.4]} 50... f5 {[%clk 0:00:21.2]} 51.
exf5+ {[%clk 0:00:09.1]} 51... Kxf5 {[%clk 0:00:21.5]} 52. Ke3 {[%clk
0:00:10.3]} 52... e4 {[%clk 0:00:21.3]} 53. Kf2 {[%clk 0:00:11.3]} 53... Kf4
{[%clk 0:00:22.3]} 54. Ke2 {[%clk 0:00:12.4]} 54... e3 {[%clk 0:00:23]} 55. Ke1
{[%clk 0:00:12.3]} 55... Kg3 {[%clk 0:00:23.4]} 56. Ke2 {[%clk 0:00:12.9]} 56...
Kxh4 {[%clk 0:00:24.4]} 57. Kxe3 {[%clk 0:00:13.8]} 57... Kg3 {[%clk 0:00:25.5]}
58. Ke2 {[%clk 0:00:15.1]} 58... Kg2 {[%clk 0:00:25.7]} 59. Ke3 {[%clk
0:00:11.5]} 59... h4 {[%clk 0:00:26.6]} 60. Kd4 {[%clk 0:00:13.4]} 60... h3
{[%clk 0:00:26.9]} 61. Kc5 {[%clk 0:00:15.3]} 61... h2 {[%clk 0:00:27.6]} 62.
Kxb5 {[%clk 0:00:17.2]} 62... h1=Q {[%clk 0:00:28]} 63. Kb6 {[%clk 0:00:16.8]}
63... Qh6+ {[%clk 0:00:27.6]} 64. Kc5 {[%clk 0:00:09.5]} 64... Qf8+ {[%clk
0:00:27.4]} 65. Kc6 {[%clk 0:00:10.5]} 65... Qb8 {[%clk 0:00:28.2]} 66. b5
{[%clk 0:00:11.8]} 66... Kf3 {[%clk 0:00:28.9]} 67. b6 {[%clk 0:00:13.7]} 67...
Ke4 {[%clk 0:00:29.8]} 0-1